bitfinex/quotes_SOLUSD_20250123
["timestamp","ask_amount","ask_price","bid_price","bid_amount"]
[1737671830651,1.0,251.28,251.08,0.063]
[1737671830964,23.776884,251.28,251.08,0.063]
[1737671832369,29.96799701,251.28,251.08,0.063]
[1737671832679,23.776884,251.26,251.08,0.063]
[1737671832864,6.19111301,251.28,251.08,0.063]
[1737671833369,11.95,251.21,251.01,0.12320308]
[1737671833680,23.776884,251.2,250.85,0.063]
[1737671833989,59.596884,251.2,250.85,0.063]
[1737671834562,59.596884,251.18,250.85,0.063]
[1737671834862,23.776884,251.16,250.85,0.063]
[1737671835279,24.776884,251.17,250.85,0.063]
[1737671836149,6.19111301,251.2,250.87,1.063]
[1737671836357,5.46,251.19,250.9,23.776884]
[1737671836558,5.46,251.19,250.98,8.116]
[1737671837475,23.776884,251.18,250.98,8.116]
[1737671841168,23.776884,251.18,250.98,8.179]
[1737671842059,23.806884,251.18,250.98,8.179]
[1737671843158,29.99799701,251.18,250.98,8.179]
[1737671843360,11.95,251.17,250.98,8.179]
[1737671843880,66.82,251.15,250.92,1.6284]
[1737671844062,11.95,251.11,250.92,1.6284]
[1737671844263,0.72826788,251.16,250.92,1.6284]
[1737671844669,6.19111301,251.12,250.92,1.6284]
[1737671845077,23.776884,251.15,250.92,1.6284]
[1737671846680,6.2370033,251.12,250.92,1.6284]
[1737671848179,41.9638873,251.13,250.92,1.6284]
[1737671848762,30.0138873,251.13,250.92,1.6284]
[1737671849262,23.776884,251.09,250.92,1.6284]
[1737671850782,23.776884,251.13,250.92,1.6284]
[1737671854887,23.806884,251.13,250.92,1.6284]
[1737671860596,0.03,251.13,250.95,1.6628]
[1737671861289,0.03,251.13,250.97,1.6628]
[1737671861887,0.03,251.13,250.99,6.6263]
[1737671862098,6.2370033,251.14,251.01,23.776884]
[1737671862285,6.2370033,251.14,251.02,6.6263]
[1737671862600,6.2370033,251.16,251.03,1.6628]
[1737671862773,6.2370033,251.16,251.05,1.5245]
[1737671864398,0.03,251.18,251.05,1.5245]
[1737671866880,0.03,251.18,251.04,3.3878]
[1737671867083,23.776884,251.16,250.94,0.063]
[1737671867692,23.806884,251.16,250.94,0.063]
[1737671869105,0.03,251.16,250.94,0.063]
[1737671870015,0.03,251.16,250.96,6.6663]
[1737671875907,6.2670033,251.16,250.96,6.6663]
[1737671876410,23.776884,251.14,250.94,0.063]
[1737671877304,6.2370033,251.1,250.94,0.063]
[1737671877495,23.776884,251.09,250.94,0.063]
[1737671878490,30.0138873,251.09,250.94,0.063]
[1737671879719,6.2370033,251.09,250.94,0.063]
[1737671880593,23.776884,251.1,250.94,0.063]
[1737671881109,6.2370033,251.12,250.94,0.063]
[1737671881819,23.776884,251.11,250.94,0.063]
[1737671882694,23.776884,251.12,250.94,0.063]
[1737671883102,23.776884,251.12,250.9,6.2317]
[1737671883103,30.0138873,251.12,250.89,1.6351]
[1737671883506,41.9638873,251.12,250.89,1.6351]
[1737671883697,41.9638873,251.12,250.88,0.063]
[1737671883698,43.6597,251.11,250.88,0.063]
[1737671883899,35.726884,251.06,250.87,0.063]
[1737671884414,23.776884,251.04,250.87,0.063]
[1737671886390,29.196884,251.04,250.87,0.063]
[1737671887821,35.4338873,251.04,250.87,0.063]
[1737671888818,29.196884,251.04,250.87,0.063]
[1737671890420,6.2370033,251.05,250.87,0.063]
[1737671891509,6.2383,251.07,250.87,0.063]
[1737671895820,23.776884,251.06,250.87,0.063]
[1737671898833,5.42,251.1,250.23,42.80619826]
[1737671898834,31.0,250.43,250.23,42.80619826]
[1737671899027,211.26463443,250.29,250.23,40.72039826]
[1737671899426,11.95,250.24,250.23,40.72039826]
[1737671899723,200.77104338,250.24,250.23,30.57639826]
[1737671899925,200.0427755,250.24,250.23,30.57639826]
[1737671901209,223.8196595,250.24,250.23,6.80639826]
[1737671901538,229.06885367,250.24,250.23,6.80639826]
[1737671901724,205.29196967,250.24,250.13,0.063]
[1737671902031,19.50516489,250.23,249.9,312.0]
[1737671902204,20.37700271,250.21,249.9,312.0]
[1737671902408,23.776884,250.2,249.9,312.0]
[1737671902623,20.91713014,250.19,249.88,1.0]
[1737671903133,0.99999637,250.21,249.83,1.0]
[1737671903435,20.98329676,250.1,249.83,1.0]
[1737671903639,20.98329676,250.1,249.84,23.776884]
[1737671903825,20.98329676,250.1,249.94,1.0]
[1737671904028,20.45351337,249.93,249.83,5.0027]
[1737671904338,20.45351337,249.93,249.86,1.0]
[1737671904538,0.99999587,249.94,249.87,23.776884]
[1737671904840,0.99999587,249.94,249.82,39.44400392]
[1737671904841,53.95445438,249.92,249.82,39.44400392]
[1737671905136,45.76533994,249.92,249.85,30.0]
[1737671905361,39.09873994,249.92,249.84,30.0]
[1737671905567,20.29608004,249.9,249.84,30.0]
[1737671905764,20.50190478,250.19,249.84,148.55]
[1737671905931,20.50190478,250.19,249.86,30.0]
[1737671906237,61.19954221,250.2,249.86,178.55]
[1737671906551,38.50725839,250.2,249.89,41.95]
[1737671906749,38.50725839,250.2,249.9,14.0056]
[1737671906954,38.50725839,250.2,249.91,23.776884]
[1737671907143,38.50725839,250.2,249.9,150.6056]
[1737671907144,38.50725839,250.2,249.9,136.6]
[1737671907342,38.50725839,250.2,249.92,30.0]
[1737671907551,38.50725839,250.2,249.92,166.6]
[1737671907950,20.14467532,250.32,249.95,30.0]
[1737671908142,20.14467532,250.32,249.95,166.6]
[1737671908337,20.14467532,250.32,249.95,146.66673975]
[1737671908658,20.29586587,250.43,250.19,312.0]
[1737671908839,19.54307582,250.41,250.2,43.14]
[1737671909166,0.99999637,250.42,250.2,43.14]
[1737671909334,19.4212565,250.37,250.2,43.14]
[1737671909648,19.54307582,250.41,250.2,43.14]
[1737671910154,23.776884,250.4,250.2,43.14]
[1737671910351,19.51057225,250.38,250.2,43.14]
[1737671910656,0.99999637,250.4,250.2,43.14]
[1737671910954,24.77688037,250.38,250.2,43.14]
[1737671911135,24.77688037,250.36,250.2,43.14]
[1737671911337,23.776884,250.33,250.2,43.14]
[1737671912345,0.99999637,250.32,250.2,43.14]
[1737671912557,23.776884,250.31,250.2,43.14]
[1737671912758,23.776884,250.34,250.2,43.14]
[1737671912939,26.572984,250.34,250.2,43.14]
[1737671913443,23.776884,250.31,250.2,23.0014]
[1737671913834,23.776884,250.29,250.2,23.0014]
[1737671914031,24.776884,250.29,250.2,23.0014]
[1737671914252,23.776884,250.29,250.2,23.0014]
[1737671914456,20.53160892,250.33,250.2,23.0014]
[1737671914640,19.53161255,250.33,250.2,23.0014]
[1737671915455,2.7963,250.32,250.2,23.0014]
[1737671915653,23.776884,250.31,250.2,23.0014]
[1737671915859,2.7963,250.32,250.2,23.0014]
[1737671916364,23.776884,250.31,250.2,23.0014]
[1737671916749,23.776884,250.29,250.2,23.0014]
[1737671916939,43.10601027,250.29,250.2,23.0014]
[1737671917155,44.10600664,250.29,250.2,20.45775976]
[1737671917458,23.776884,250.27,250.2,20.45775976]
[1737671918663,23.776884,250.25,250.2,20.45775976]
[1737671919546,23.776884,250.25,250.01,3.9997]
[1737671919753,27.49339576,250.25,250.01,3.9997]
[1737671919954,23.776884,250.23,250.01,3.9997]
[1737671920548,2.7973,250.23,249.96,4.0006]
[1737671920948,0.7992,250.23,249.96,316.0006]
[1737671921247,1.1988,250.23,249.96,326.0022]
[1737671922668,23.776884,250.24,249.96,326.0022]
[1737671922849,0.3996,250.23,249.96,346.0054]
[1737671923056,0.3996,250.23,249.96,34.0054]
[1737671923253,0.3996,250.23,249.97,23.776884]
[1737671924754,0.9988,250.31,249.99,23.776884]
[1737671924755,0.99999637,250.31,249.99,23.776884]
[1737671924958,23.776884,250.3,249.99,23.776884]
[1737671925156,23.776884,250.27,249.99,23.776884]
[1737671925469,23.776884,250.3,249.99,23.776884]
[1737671925856,23.776884,250.28,250.0,14.0]
[1737671926057,23.776884,250.28,250.0,326.0]
[1737671926261,24.77688037,250.28,250.0,326.0]
[1737671926446,24.77688037,250.28,250.0,14.0]
[1737671926649,23.776884,250.28,250.0,14.0]
[1737671926967,0.9989,250.27,250.0,14.0]
[1737671928672,23.776884,250.26,250.0,14.0]
[1737671929047,23.776884,250.24,250.0,14.0]
[1737671929547,23.776884,250.24,250.0,326.0]
[1737671930264,23.776884,250.29,250.0,326.0]
[1737671930471,23.776884,250.28,250.0,326.0]
[1737671930671,24.77688037,250.28,250.0,326.0]
[1737671930873,23.776884,250.28,250.0,326.0]
[1737671931652,1.3984,250.27,250.0,326.0]
[1737671932361,1.3984,250.27,250.0,14.0]
[1737671932863,1.0,250.24,250.0,4.0]
[1737671933064,23.776884,250.21,250.0,4.0]
[1737671934685,5.394,250.27,249.72,0.0001]
[1737671934686,0.99999637,249.73,249.72,0.0001]
[1737671934883,0.99999637,249.7,249.39,4.0097]
[1737671935063,0.99999637,249.7,249.39,14.0341]
[1737671935386,0.99999637,249.7,249.39,25.9841]
[1737671935564,0.99999637,249.8,249.4,0.73318822]
[1737671935764,1.4011,249.79,249.41,14.033]
[1737671936083,0.99999637,249.7,249.41,14.033]
[1737671936292,2.40109637,249.79,249.41,145.133]
[1737671936489,0.99999637,249.7,249.41,145.133]
[1737671936659,0.99999637,249.7,249.41,177.1303]
[1737671936975,0.4003,249.79,249.42,35.726884]
[1737671937190,0.4003,249.79,249.42,143.05]
[1737671937363,1.40029637,249.79,249.42,143.05]
[1737671937684,0.4003,249.79,249.43,14.0319]
[1737671937888,0.99999637,249.7,249.43,14.0319]
[1737671938461,23.776884,249.69,249.43,14.0319]
[1737671938662,23.776884,249.69,249.43,4.0091]
[1737671939659,0.4004,249.72,249.46,23.776884]
[1737671939863,0.99999637,249.7,249.46,23.776884]
[1737671940280,23.776884,249.69,249.46,23.776884]
[1737671940681,1.69383548,249.76,249.46,23.776884]
[1737671940862,0.4003,249.8,249.46,23.776884]
[1737671941691,0.4003,249.8,249.5,23.776884]
[1737671941985,0.4003,249.8,249.52,23.776884]
[1737671942179,23.776884,249.78,249.52,23.776884]
[1737671942577,1.1099191,249.79,249.52,23.776884]
[1737671942767,1.1099191,249.79,249.48,23.776884]
[1737671942968,23.776884,249.78,249.48,23.776884]
[1737671943490,1.1099191,249.77,249.54,11.95]
[1737671943661,1.1099191,249.77,249.57,35.726884]
[1737671944174,1.1099191,249.77,249.6,35.726884]
[1737671944963,1.1099191,249.77,249.62,23.776884]
[1737671945169,1.1099191,249.77,249.64,23.776884]
[1737671945484,1.1099191,249.92,249.64,35.726884]
[1737671946370,1.1099191,249.92,249.66,35.726884]
[1737671946564,24.176884,250.0,249.66,35.726884]
[1737671947194,0.3999,250.05,249.71,11.95]
[1737671947365,0.3999,250.05,249.74,11.95]
[1737671947568,0.3999,250.05,249.75,30.136884]
[1737671948376,3.1934,250.06,249.75,173.186884]
[1737671948686,3.1934,250.06,249.86,23.776884]
[1737671949172,3.1934,250.06,249.8,23.776884]
[1737671949576,3.1934,250.06,249.8,35.726884]
[1737671949774,3.1934,250.06,249.77,11.95]
[1737671949968,24.176784,250.05,249.76,54.0518]
[1737671950391,3.1934,250.06,249.77,23.776884]
[1737671950589,3.1934,250.06,249.78,14.0123]
[1737671950973,3.1934,250.06,249.79,35.726884]
[1737671952197,3.1934,250.06,249.83,23.776884]
[1737671952687,3.1934,250.06,249.85,23.776884]
[1737671954793,3.1934,250.06,249.84,20.0128]
[1737671954794,23.776884,250.05,249.86,14.0078]
[1737671954977,3.5933,250.06,249.86,14.0078]
[1737671955176,23.776884,250.05,249.86,14.0078]
[1737671955378,3.5933,250.06,249.86,14.0078]
[1737671955779,3.1934,250.06,249.86,34.019]
[1737671956170,3.1934,250.06,249.87,23.776884]
[1737671956777,3.1934,250.06,249.89,23.776884]
[1737671958306,3.1934,250.06,249.9,34.0136]
[1737671958722,6.5424,249.96,249.58,4.0067]
[1737671958876,6.5424,249.96,249.59,312.0]
[1737671959079,0.99999637,249.95,249.59,312.0]
[1737671959390,23.776884,249.94,249.6,0.73260073]
[1737671959595,0.99999637,249.95,249.61,35.726884]
[1737671959799,0.4,249.94,249.62,37.798084]
[1737671960000,0.4,249.94,249.66,23.776884]
[1737671960300,6.5424,249.96,249.66,23.776884]
[1737671960498,6.9424,249.96,249.66,23.776884]
[1737671960680,6.5424,249.96,249.66,53.776884]
[1737671961187,6.5424,249.96,249.66,23.776884]
[1737671962000,6.5424,249.96,249.68,23.776884]
[1737671962209,6.5424,249.96,249.72,0.063]
[1737671963086,6.5424,249.96,249.74,23.776884]
[1737671964999,6.5424,249.96,249.73,34.0367]
[1737671965000,6.5424,249.96,249.76,23.776884]
[1737671966192,6.5424,249.96,249.78,23.776884]
[1737671966700,6.5424,249.96,249.8,23.776884]
[1737671967105,7.9478,250.05,249.82,23.776884]
[1737671968203,7.9478,250.05,249.83,23.776884]
[1737671968607,7.9478,250.05,249.83,35.726884]
[1737671968992,7.9478,250.05,249.84,14.0089]
[1737671970002,7.9478,250.05,249.85,23.776884]
[1737671970310,7.9478,250.05,249.84,34.0217]
[1737671970521,7.9478,250.05,249.85,23.776884]
[1737671971185,7.9478,250.05,249.84,21.69922385]
[1737671971402,7.9478,250.05,249.87,23.776884]
[1737671973180,7.9478,250.05,249.86,23.776884]
[1737671973401,7.9478,250.05,249.89,23.776884]
[1737671975503,7.9478,250.05,249.91,23.776884]
[1737671976114,7.9478,250.05,249.93,23.776884]
[1737671977021,7.9478,250.05,249.95,23.776884]
[1737671978207,7.9478,250.05,249.96,14.0022]
[1737671978412,7.9478,250.05,249.97,23.776884]
[1737671978922,1.3997,250.04,249.86,4.0021]
[1737671979131,0.99999637,250.03,249.73,4.0043]
[1737671979294,0.99999637,250.03,249.73,14.0151]
[1737671979918,8.3477,250.05,249.74,23.776884]
[1737671980096,8.3477,250.05,249.74,53.776884]
[1737671980298,8.3477,250.05,249.75,14.014]
[1737671980529,7.9478,250.05,249.75,14.014]
[1737671980720,7.9478,250.05,249.78,30.0]
[1737671980922,7.9478,250.05,249.79,23.776884]
[1737671981737,7.9478,250.05,249.82,23.776884]
[1737671981944,7.9478,250.05,249.84,23.776884]
[1737671982444,7.9478,250.05,249.86,23.776884]
[1737671982822,7.9478,250.05,249.88,23.776884]
[1737671983444,7.9478,250.05,249.9,23.776884]
[1737671984538,7.9478,250.05,249.89,14.0061]
[1737671984747,7.9478,250.05,249.9,23.776884]
[1737671985344,7.9478,250.05,249.88,23.776884]
[1737671985542,7.9478,250.05,249.92,23.776884]
[1737671985922,7.9778,250.05,249.92,23.776884]
[1737671987124,7.9778,250.05,249.89,4.0017]
[1737671987332,23.776884,250.02,249.89,4.0017]
[1737671987533,0.99999637,250.0,249.89,4.0017]
[1737671988046,1.3999,250.01,249.89,4.0017]
[1737671988556,0.3999,250.03,249.89,4.0017]
[1737671991959,8.3777,250.05,249.9,23.776884]
[1737671992165,7.9778,250.05,249.9,23.776884]
[1737671993240,7.9778,250.05,249.92,23.776884]
[1737671996309,7.9778,250.05,249.93,4.0011]
[1737671999437,1.0,250.04,249.88,23.839884]
[1737671999753,1.99999637,250.04,249.89,4.0017]
[1737672000161,1.0,249.99,249.88,0.063]
[1737672000364,7.9778,250.05,249.88,4.0648]
[1737672000549,7.9778,250.05,249.88,14.0696]
[1737672001052,7.9778,250.05,249.88,15.75839873]
[1737672001549,7.9778,250.05,249.9,14.0056]
[1737672001756,7.9778,250.05,249.91,23.776884]
[1737672002161,7.9778,250.05,249.93,23.776884]
[1737672002340,0.03,250.05,249.93,154.876884]
[1737672002542,1.5033,250.13,249.96,11.95]
[1737672002763,1.5033,250.13,249.96,143.05]
[1737672002934,1.5033,250.13,249.97,5.68]
[1737672003361,6.1755,250.14,250.0,23.776884]
[1737672003554,6.1755,250.14,250.02,23.776884]
[1737672003760,6.1755,250.14,250.02,154.876884]
[1737672004054,6.0407,250.24,250.02,154.876884]
[1737672004942,6.0407,250.24,250.04,23.776884]
[1737672005146,6.0407,250.24,250.04,335.776884]
[1737672005353,6.0407,250.24,250.04,466.876884]
[1737672006558,1.5018,250.23,250.06,23.776884]
[1737672008658,1.5018,250.23,250.08,37.772384]
[1737672009254,1.5018,250.23,250.08,57.765984]
[1737672010066,6.0407,250.24,250.08,57.765984]
[1737672010241,6.0407,250.24,250.08,188.865984]
[1737672010641,6.0407,250.24,250.08,208.859584]
[1737672011158,1.5899,250.32,250.14,23.776884]
[1737672011461,1.5899,250.32,250.14,154.876884]
[1737672012857,1.5899,250.32,250.16,23.776884]
[1737672013062,1.5899,250.32,250.18,23.776884]
[1737672013970,0.03,250.32,250.18,23.776884]
[1737672014470,1.5186,250.4,250.21,23.776884]
[1737672014662,1.5186,250.4,250.23,23.776884]
[1737672014868,1.5186,250.4,250.25,23.776884]
[1737672015056,1.5186,250.4,250.25,154.876884]
[1737672015770,6.5313,250.42,250.25,154.876884]
[1737672016970,6.5313,250.42,250.27,23.776884]
[1737672017976,1.5186,250.48,250.27,154.876884]
[1737672018182,1.5186,250.48,250.29,23.776884]
[1737672018850,1.5186,250.48,250.31,23.776884]
[1737672019871,1.5186,250.48,250.31,154.876884]
[1737672020253,1.5186,250.48,250.33,23.776884]
[1737672020456,1.5186,250.48,250.33,154.876884]
[1737672021148,1.5186,250.48,250.35,23.776884]
[1737672021580,0.03,250.53,250.37,35.726884]
[1737672022351,8.2458,250.59,250.39,23.776884]
[1737672022576,8.2458,250.59,250.39,154.876884]
[1737672022874,8.2458,250.59,250.41,23.776884]
[1737672023872,8.2458,250.59,250.41,154.876884]
[1737672024459,1.5824,250.59,250.41,166.826884]
[1737672024773,1.5824,250.59,250.43,23.776884]
[1737672024972,0.03,250.6,250.43,23.776884]
[1737672025473,0.03,250.6,250.43,166.826884]
[1737672025864,0.03,250.6,250.49,23.776884]
[1737672026184,0.03,250.6,250.5,33.932]
[1737672026478,0.03,250.6,250.51,23.776884]
[1737672027057,0.03,250.6,250.53,23.776884]
[1737672027769,6.6634,250.65,250.53,23.776884]
[1737672027961,1.5824,250.67,250.53,23.776884]
[1737672028163,1.5824,250.67,250.52,33.9292]
[1737672028364,1.5824,250.67,250.53,23.776884]
[1737672029680,1.5824,250.67,250.55,23.776884]
[1737672030252,1.5824,250.67,250.54,13.9697]
[1737672030457,2.5824,250.67,250.54,57.0697]
[1737672030677,2.5824,250.67,250.54,3.9913]
[1737672031159,2.5824,250.67,250.55,23.776884]
[1737672031781,1.0,250.62,250.5,3.992]
[1737672031985,6.427,250.61,250.5,3.992]
[1737672032359,6.427,250.61,250.51,23.776884]
[1737672032977,6.427,250.61,250.52,3.9916]
[1737672033985,7.427,250.61,250.52,3.9916]
[1737672035267,1.427,250.61,250.52,3.9916]
[1737672035686,2.427,250.61,250.52,3.9916]
[1737672038992,1.427,250.61,250.52,3.9916]
[1737672039498,2.427,250.61,250.52,3.9916]
[1737672039691,0.99999637,250.55,250.49,43.1]
[1737672039870,1.0,250.57,250.49,43.1]
[1737672040081,1.0,250.54,250.49,43.1]
[1737672040966,2.427,250.61,250.5,23.776884]
[1737672041164,2.427,250.61,250.51,3.9918]
[1737672043585,1.5824,250.67,250.52,23.776884]
[1737672044480,1.5824,250.67,250.53,9.9788]
[1737672044782,1.5824,250.67,250.54,23.776884]
[1737672045497,1.6124,250.67,250.54,23.776884]
[1737672045673,1.6124,250.67,250.56,23.776884]
[1737672045869,1.6124,250.67,250.56,53.776884]
[1737672046572,0.99999637,250.74,250.56,53.776884]
[1737672047688,0.99999637,250.66,250.56,30.0]
[1737672047885,0.99999637,250.66,250.52,0.063]
[1737672048095,0.99999637,250.66,250.52,30.063]
[1737672048397,0.99999637,250.66,250.52,0.063]
[1737672048885,0.3989,250.65,250.54,3.9913]
[1737672049692,8.0732,250.64,250.54,3.9913]
[1737672052199,8.0732,250.64,250.52,0.063]
[1737672052398,0.3989,250.63,250.52,4.0545]
[1737672052598,0.99999637,250.62,250.52,0.063]
[1737672052796,0.99999637,250.6,250.52,0.063]
[1737672054106,1.39899637,250.6,250.52,0.063]
[1737672055183,0.99999637,250.58,250.52,0.063]
[1737672055905,1.39899637,250.6,250.52,0.063]
[1737672056104,0.399,250.6,250.52,0.063]
[1737672056295,0.99999637,250.61,250.52,0.063]
[1737672057219,1.02999637,250.61,250.52,0.063]
[1737672057408,0.399,250.6,250.52,0.063]
[1737672058116,0.99999637,250.54,250.52,0.063]
[1737672058606,0.99999637,250.57,250.52,0.063]
[1737672058911,0.99999637,250.55,250.52,0.063]
[1737672059310,1.39909637,250.55,250.52,0.063]
[1737672060794,0.99999637,250.53,250.52,0.063]
[1737672061511,7.18079637,250.5,250.49,43.1]
[1737672062008,7.18079637,250.5,250.49,41.4334]
[1737672062508,30.95768037,250.5,250.49,31.4597]
[1737672062809,0.99999637,250.4,250.33,5.79915724]
[1737672062984,0.99999637,250.38,250.33,5.79915724]
[1737672063184,0.99999637,250.38,250.32,3.9948]
[1737672063819,0.99999637,250.39,250.32,3.9948]
[1737672064315,1.39929637,250.43,250.29,23.776884]
[1737672065619,1.39929637,250.43,250.3,3.9952]
[1737672065819,0.99999637,250.37,250.3,3.9952]
[1737672065995,0.99999637,250.41,250.3,3.9952]
[1737672066203,0.99999637,250.4,250.3,3.9952]
[1737672066507,0.99999637,250.41,250.3,3.9952]
[1737672067000,1.39929637,250.44,250.3,3.9952]
[1737672067201,0.99999637,250.42,250.31,23.776884]
[1737672067514,1.39919637,250.47,250.31,23.776884]
[1737672068096,0.99999637,250.4,250.31,23.776884]
[1737672068410,0.99999637,250.44,250.31,23.776884]
[1737672068714,0.99999637,250.44,250.31,3.9949]
[1737672070116,0.99999637,250.42,250.31,3.9949]
[1737672070415,0.99999637,250.31,250.3,0.063]
[1737672071619,6.4554,250.34,250.3,0.063]
[1737672072598,0.99999637,250.32,250.3,0.063]
[1737672072816,6.4554,250.34,250.3,0.063]
[1737672073799,7.45539637,250.34,250.3,0.063]
[1737672074017,0.99999637,250.32,250.31,0.03199197]
[1737672074318,0.99999637,250.32,250.3,0.063]
[1737672076822,1.39939637,250.32,250.3,0.063]
[1737672077518,0.99999637,250.32,250.3,0.063]
[1737672078098,1.39939637,250.32,250.3,0.063]
[1737672084519,0.99999637,250.16,250.06,1.5193]
[1737672084725,0.99999637,250.14,250.07,3.9988]
[1737672085437,0.99999637,250.12,250.07,3.9988]
[1737672085921,0.99999637,250.05,249.99,5.5193]
[1737672086108,0.99999637,250.05,249.97,0.063]
[1737672091514,30.79478037,250.05,249.97,0.063]
[1737672091915,30.79478037,250.05,250.04,0.0001]
[1737672093146,0.99999637,249.98,249.97,0.063]
[1737672093547,24.77688037,249.98,249.97,0.063]
[1737672095145,0.99999637,249.98,249.97,0.063]
[1737672095444,0.99999637,250.02,249.97,4.0634]
[1737672095736,0.99999637,250.11,249.99,23.776884]
[1737672096037,0.99999637,250.11,249.98,1.6215]
[1737672096454,0.99999637,250.09,249.99,23.776884]
[1737672097038,0.99999637,250.09,249.98,1.6215]
[1737672097039,0.99999637,250.01,249.98,1.6215]
[1737672097359,0.99999637,249.99,249.97,0.063]
[1737672098520,23.776884,250.08,249.97,0.063]
[1737672098725,1.0,250.07,249.97,0.063]
[1737672099027,2.9988,250.15,249.97,0.063]
[1737672099028,1.0,250.02,249.97,0.063]
[1737672099339,23.776884,249.99,249.97,0.063]
[1737672099528,1.0,249.95,249.88,0.063]
[1737672099925,23.776884,249.94,249.88,0.063]
[1737672100131,23.776884,249.92,249.88,0.063]
[1737672100524,1.0,249.91,249.88,0.063]
[1737672101548,2.0,249.94,249.88,0.063]
[1737672101937,23.776884,249.93,249.88,0.063]
[1737672102646,0.4001,249.92,249.88,0.063]
[1737672103024,23.776884,249.91,249.88,0.063]
[1737672103632,23.776884,249.89,249.73,4.0042]
[1737672103833,23.776884,249.86,249.73,4.0042]
[1737672104522,6.1841,249.9,249.74,4.004]
[1737672104725,0.4001,249.89,249.72,0.063]
[1737672104931,0.4001,249.89,249.77,4.0036]
[1737672105220,24.176984,249.89,249.72,0.063]
[1737672105539,25.176984,249.89,249.75,4.0039]
[1737672105925,24.176984,249.89,249.75,4.0039]
[1737672106124,24.176984,249.89,249.72,0.063]
[1737672106532,24.176984,249.89,249.75,4.0039]
[1737672107544,24.176984,249.89,249.72,0.063]
[1737672107728,24.176984,249.89,249.76,4.0037]
[1737672108143,24.176984,249.89,249.77,4.0036]
[1737672109251,24.176984,249.89,249.72,0.063]
[1737672109556,24.176984,249.89,249.75,4.0039]
[1737672109843,1.0,249.84,249.72,0.063]
[1737672110244,23.776884,249.8,249.72,0.063]
[1737672110427,1.0,249.83,249.72,0.063]
[1737672110626,23.776884,249.82,249.72,0.063]
[1737672111061,1.0,249.87,249.72,0.063]
[1737672111266,23.776884,249.86,249.72,4.0674]
[1737672112077,3.02573606,249.89,249.72,0.063]
[1737672112078,1.0,249.84,249.72,0.063]
[1737672112349,24.776884,249.77,249.72,0.063]
[1737672112555,23.776884,249.75,249.72,0.063]
[1737672112855,24.776884,249.75,249.72,0.063]
[1737672113148,1.0,249.73,249.72,0.063]
[1737672113356,25.177284,249.73,249.72,0.063]
[1737672113955,6.0027,249.76,249.72,0.063]
[1737672114260,0.4003,249.81,249.72,0.063]
[1737672114450,1.0005,249.87,249.72,0.063]
[1737672114658,0.4002,249.85,249.72,4.0674]
[1737672114972,0.4002,249.85,249.72,0.063]
[1737672115268,0.4002,249.85,249.72,4.0674]
[1737672116065,0.4001,249.89,249.72,4.0674]
[1737672116649,1.0,249.95,249.73,1.5932]
[1737672116866,0.4,249.94,249.73,1.5932]
[1737672117971,24.176884,249.94,249.72,14.0786]
[1737672119243,24.176984,249.92,249.72,14.0786]
[1737672120164,0.4001,249.92,249.72,14.0786]
[1737672120577,1.0,249.87,249.72,0.063]
[1737672120783,1.0,249.86,249.72,0.063]
[1737672120984,1.0,249.83,249.72,0.063]